lending/lending_fUSD_20250430
["ID","MTS","AMOUNT","RATE_DAILY","PERIOD"]
[359473720,1746048638440,-500.0,0.00019838,2]
[359473722,1746048638449,-295.49931768,0.00019838,2]
[359473724,1746048638458,-500.0,0.00019838,2]
[359473726,1746048638467,-500.0,0.00019838,2]
[359473728,1746048638476,-500.0,0.00019838,2]
[359473730,1746048638486,-500.0,0.00019838,2]
[359473732,1746048638495,-500.0,0.00019838,2]
[359473734,1746048638504,-1697.943574,0.00019839,2]
[359473736,1746048638514,-150.0,0.00019849,2]
[359473738,1746048638524,-150.0,0.0001985,2]
[359473740,1746048638533,-150.0,0.00019851,2]
[359473742,1746048638543,-1697.943574,0.00019852,2]
[359473744,1746048638553,-150.0,0.00019852,2]
[359473746,1746048638563,-150.0,0.00019854,2]
[359473748,1746048638573,-185.71969899,0.00019859,2]
[359473750,1746048638583,-150.0,0.0001986,2]
[359473752,1746048638592,-1697.943574,0.00019864,2]
[359473754,1746048638602,-150.0,0.00019865,2]
[359473756,1746048638613,-150.0,0.00019875,2]
[359473758,1746048638623,-150.0,0.00019875,2]
[359473760,1746048638632,-150.0,0.00019876,2]
[359473762,1746048638642,-1697.943574,0.00019876,2]
[359473764,1746048638651,-150.0,0.0001988,2]
[359473766,1746048638660,-150.0,0.00019882,2]
[359473768,1746048638670,-150.0,0.00019884,2]
[359473770,1746048638679,-150.0,0.00019885,2]
[359473772,1746048638688,-150.0,0.00019886,2]
[359473774,1746048638697,-1697.943574,0.00019889,2]
[359473776,1746048638707,-93995.48373128,0.00019889,2]
[359473778,1746048638716,-150.0,0.0001989,2]
[359473780,1746048638725,-500.0,0.0001989,2]
[359473782,1746048638734,-500.0,0.0001989,2]
[359473784,1746048638744,-500.0,0.0001989,2]
[359473786,1746048638753,-500.0,0.0001989,2]
[359473788,1746048638763,-649.336,0.00019891,2]
[359473790,1746048638772,-150.0,0.00019892,2]
[359473792,1746048638782,-1000.0,0.00019894,2]
[359473794,1746048638792,-150.0,0.00019896,2]
[359473796,1746048638802,-1000.0,0.00019897,2]
[359473798,1746048638812,-1000.0,0.00019898,2]
[359473800,1746048638821,-4849.63169898,0.00019899,2]
[359473802,1746048638831,-44309.44948813,0.000199,2]
[359473804,1746048638840,-207.5035362,0.000199,2]
[359473806,1746048638849,-157.0066541,0.000199,3]
[359473808,1746048638862,-1432.89530392,0.000199,2]
[359473810,1746048638872,-1697.943574,0.00019901,2]
[359473812,1746048638881,-150.0,0.00019903,2]
[359473814,1746048638891,-1000.0,0.00019904,2]
[359473816,1746048638900,-150.0,0.00019912,2]
[359473818,1746048638912,-500.0,0.00019918,2]
[359473820,1746048638922,-1000.0,0.00019919,2]
[359473822,1746048638932,-1938.51000653,0.0001992,2]
[359473824,1746048638941,-150.0,0.00019921,2]
[359473826,1746048638951,-150.0,0.00019923,2]
[359473828,1746048638961,-150.0,0.00019924,2]
[359473830,1746048638970,-150.0,0.00019939,2]
[359473832,1746048638980,-150.0,0.00019941,2]
[359473834,1746048638989,-150.0,0.00019944,2]
[359473836,1746048638999,-150.0,0.00019946,2]
[359473838,1746048639008,-1000.0,0.00019951,2]
[359473840,1746048639018,-1938.51000653,0.00019954,2]
[359473842,1746048639027,-150.0,0.00019959,2]
[359473844,1746048639037,-1000.0,0.0001996,2]
[359473846,1746048639047,-150.0,0.0001996,2]
[359473848,1746048639056,-150.0,0.00019966,2]
[359473850,1746048639066,-501.68025213,0.0001997,2]
[359473852,1746048639076,-1654.14512105,0.0001997,2]
[359473854,1746048639085,-150.0,0.0001997,2]
[359473856,1746048639095,-150.0,0.0001997,2]
[359473859,1746048639106,-150.0,0.00019971,2]
[359473860,1746048639115,-500.0,0.00019973,2]
[359473862,1746048639125,-505.79642569,0.00019973,2]
[359473865,1746048639135,-500.0,0.00019973,2]
[359473866,1746048639146,-150.0,0.00019974,2]
[359473868,1746048639155,-150.0,0.00019976,2]
[359473870,1746048639165,-150.0,0.00019979,2]
[359473872,1746048639175,-150.0,0.00019983,2]
[359473875,1746048639186,-3114.3307467,0.00019986,2]
[359473876,1746048639197,-150.0,0.00019986,2]
[359473879,1746048639208,-150.0,0.00019986,2]
[359473880,1746048639220,-150.0,0.00019986,2]
[359473883,1746048639229,-4644.1016568,0.00019986,2]
[359473885,1746048639239,-66886.1493437,0.00019986,2]
[359473887,1746048639248,-150.0,0.00019991,2]
[359473889,1746048639257,-150.0,0.00019996,2]
[359473891,1746048639267,-150.0,0.00019997,2]
[359473892,1746048639278,-300.0,0.00019999,2]
[359473894,1746048639289,-500.0,0.00019999,2]
[359473896,1746048639301,-500.0,0.00019999,2]
[359473899,1746048639311,-539.0,0.0002,2]
[359473916,1746048639473,-796304.23800343,0.0002,2]
[359473918,1746048639484,-36872.193901,0.0002,2]
[359473920,1746048639494,-5577.066804,0.0002,2]
[359473922,1746048639504,-453.22064694,0.0002,2]
[359473924,1746048639514,-200.0,0.0002,2]
[359473926,1746048639523,-188.89137536,0.0002,2]
[359473928,1746048639533,-3762765.65815608,0.0002,2]
[359473970,1746048639934,-629.23687052,0.0002,2]
[359473985,1746048640086,-504.26360345,0.0002,2]
[359473993,1746048640223,-23233.48794506,0.0002,2]
[359473995,1746048640236,-2765.51205494,0.0002,2]
[359474240,1746048642609,-1992.86795015,0.0002,2]
[359474268,1746048642882,-535.26750463,0.0002,2]
[359474509,1746048645571,-1269.7494336,0.0002,2]
[359474532,1746048645785,-12292.68316476,0.0002,2]
[359474549,1746048645952,-3010.22088828,0.0002,2]
[359477413,1746048783904,964.67,0.00017269,2]
[359477414,1746048787944,-193.20574912,0.00019533,2]
[359477415,1746048845756,676.84,0.00019017,2]
[359477416,1746048853541,557.77,0.00019017,2]
[359477417,1746048859946,1000.0,0.00019031,2]
[359477418,1746048879830,508.25,0.00031,120]
[359477419,1746048880115,508.25,0.000313,120]
[359477420,1746048880412,508.25,0.000316,120]
[359477421,1746048880701,508.25,0.000319,120]
[359477422,1746048881020,508.25,0.000322,120]
[359477423,1746048881307,508.25,0.000325,120]
[359477424,1746048881609,508.25,0.000328,120]
[359477425,1746049031230,728.0,0.00032877,60]
[359477426,1746049126245,169.58,0.00018924,2]
[359477427,1746049126307,169.58,0.0001894,2]
[359477428,1746049126515,169.58,0.00018956,2]
[359477429,1746049126756,169.58,0.00018971,2]
[359477430,1746049127171,169.58,0.00018987,2]
[359477431,1746049127790,169.58,0.00019003,2]
[359477432,1746049127894,169.58,0.00019019,2]
[359477433,1746049212785,162.42,0.00018846,2]
[359477434,1746049241439,250.0,0.00017,2]
[359477435,1746049242538,300.0,0.00019,2]
[359477436,1746049286466,-771.46425088,0.00019533,2]
[359477437,1746049286493,-200.0,0.00019583,2]
[359477438,1746049286519,-200.0,0.00019633,2]
[359477439,1746049286544,-250.0,0.00019633,2]
[359477440,1746049286569,-5615.82578436,0.00019682,2]
[359477441,1746049286594,-1200.0,0.00019684,2]
[359477442,1746049286619,-300.0,0.00019684,2]
[359477443,1746049286644,-300.0,0.00019684,2]
[359477444,1746049286673,-6985.5265,0.00019685,2]
[359477445,1746049286698,-5615.82578427,0.00019706,2]
[359477446,1746049286724,-5615.82578427,0.0001973,2]
[359477447,1746049286752,-150.0,0.00019733,2]
[359477448,1746049286780,-150.0,0.00019734,2]
[359477449,1746049286808,-150.0,0.00019744,2]
[359477450,1746049286835,-5615.82578427,0.00019755,2]
[359477451,1746049286865,-150.0,0.00019755,2]
[359477452,1746049286891,-3555.22917614,0.00019756,2]
[359477453,1746049286918,-150.0,0.00019768,2]
[359477454,1746049286944,-470.5857518,0.00019774,2]
[359477455,1746049287143,-1145.32585571,0.00019774,2]
[359477456,1746049287175,-1145.32585571,0.00019774,2]
[359477457,1746049287208,-1145.32585571,0.00019774,2]
[359477458,1746049287241,-1145.32585571,0.00019774,2]
[359477459,1746049287272,-1145.32585571,0.00019774,2]
[359477460,1746049287303,-1145.32585571,0.00019774,2]
[359477461,1746049287333,-1145.32585571,0.00019774,2]
[359477462,1746049287363,-1145.32585571,0.00019774,2]
[359477463,1746049287393,-1145.32585571,0.00019774,2]
[359477464,1746049287424,-1145.32585571,0.00019774,2]
[359477465,1746049287455,-1145.32585571,0.00019774,2]
[359477466,1746049287484,-1145.32585571,0.00019774,2]
[359477467,1746049287515,-1145.32585571,0.00019774,2]
[359477468,1746049287546,-1145.32585571,0.00019774,2]
[359477469,1746049287576,-1145.32585571,0.00019774,2]
[359477470,1746049287607,-1145.32585571,0.00019774,2]
[359477471,1746049287636,-1145.32585571,0.00019774,2]
[359477472,1746049287672,-1145.32585571,0.00019774,2]
[359477473,1746049287703,-1145.32585571,0.00019774,2]
[359477474,1746049287734,-1145.32585571,0.00019774,2]
[359477475,1746049287765,-1145.32585571,0.00019774,2]
[359477476,1746049287795,-1145.32585571,0.00019774,2]
[359477477,1746049287825,-1145.32585571,0.00019774,2]
[359477478,1746049287856,-1145.32585571,0.00019774,2]
[359477479,1746049287886,-1145.32585571,0.00019774,2]
[359477480,1746049287915,-1145.32585571,0.00019774,2]
[359477481,1746049287944,-1145.32585571,0.00019774,2]
[359477482,1746049287974,-1145.32585571,0.00019774,2]
[359477483,1746049288004,-1145.32585571,0.00019774,2]
[359477484,1746049288034,-1145.32585571,0.00019774,2]
[359477485,1746049288065,-1145.32585571,0.00019774,2]
[359477486,1746049288094,-1145.32585571,0.00019774,2]
[359477487,1746049288123,-1145.32585571,0.00019774,2]
[359477488,1746049288153,-1145.32585571,0.00019774,2]
[359477489,1746049288183,-1145.32585571,0.00019774,2]
[359477490,1746049288217,-1145.32585571,0.00019774,2]
[359477491,1746049288252,-1145.32585571,0.00019774,2]
[359477492,1746049288286,-1145.32585571,0.00019774,2]
[359477493,1746049288318,-1145.32585571,0.00019774,2]
[359477494,1746049288351,-1145.32585571,0.00019774,2]
[359477495,1746049288384,-3155.46931681,0.00019774,2]
[359477496,1746049288415,-185.3876388,0.00019774,2]
[359477497,1746049321901,23900.0,0.00018911,2]
[359477508,1746049672359,195.0,0.00018862,2]
[359477602,1746049788619,1190.44675422,0.00032877,60]
[359477604,1746049831665,-166.66,0.00019483,2]
[359477605,1746049831675,-250.0,0.00019556,2]
[359477606,1746049831684,-507.0595,0.00019675,2]
[359477607,1746049831693,-150.0,0.00019684,2]
[359477608,1746049831703,-150.0,0.00019685,2]
[359477609,1746049831712,-150.0,0.00019698,2]
[359477610,1746049831721,-150.0,0.00019719,2]
[359477611,1746049831730,-150.0,0.00019723,2]
[359477612,1746049831739,-150.0,0.00019727,2]
[359477613,1746049831748,-150.0,0.00019733,2]
[359477614,1746049831757,-150.0,0.00019736,2]
[359477615,1746049831766,-125.80854191,0.00019739,2]
[359477616,1746049831798,-24.19145809,0.00019739,2]
[359477617,1746049831808,-649.63120246,0.00019745,2]
[359477618,1746049831839,-350.36879754,0.00019745,2]
[359477619,1746049831850,-150.0,0.00019747,2]
[359477620,1746049831859,-100.5171301,0.00019752,2]
[359477621,1746049831896,-49.4828699,0.00019752,2]
[359477622,1746049831907,-1000.0,0.00019752,2]
[359477623,1746049831918,-850.5171201,0.00019755,2]
[359477644,1746049837777,-149.4828799,0.00019755,2]
[359477645,1746049837786,-150.0,0.00019757,2]
[359477646,1746049837796,-1200.0,0.00019759,2]
[359477647,1746049837806,-300.0,0.00019759,2]
[359477648,1746049837816,-12674.17907542,0.0001976,2]
[359477649,1746049837827,-150.0,0.0001976,2]
[359477650,1746049837838,-150.0,0.00019763,2]
[359477651,1746049837847,-150.0,0.00019763,2]
[359477652,1746049837857,-4849.63169898,0.00019769,2]
[359477653,1746049837867,-1422.72635039,0.0001977,2]
[359477654,1746049837879,-1422.72635039,0.0001977,2]
[359477655,1746049837888,-1422.72635039,0.0001977,2]
[359477656,1746049837898,-1422.72635039,0.0001977,2]
[359477657,1746049837909,-1422.72635039,0.0001977,2]
[359477658,1746049837919,-1422.72635039,0.0001977,2]
[359477659,1746049837929,-1422.72635039,0.0001977,2]
[359477660,1746049837940,-1422.72635039,0.0001977,2]
[359477661,1746049837951,-1422.72635039,0.0001977,2]
[359477662,1746049837962,-1422.72635039,0.0001977,2]
[359477663,1746049837972,-1422.72635039,0.0001977,2]
[359477664,1746049837982,-1422.72635039,0.0001977,2]
[359477665,1746049837992,-1422.72635039,0.0001977,2]
[359477666,1746049838001,-1422.72635039,0.0001977,2]
[359477667,1746049838012,-1422.72635039,0.0001977,2]
[359477668,1746049838023,-1422.72635039,0.0001977,2]
[359477669,1746049838034,-1422.72635039,0.0001977,2]
[359477670,1746049838046,-1422.72635039,0.0001977,2]
[359477671,1746049838056,-1422.72635039,0.0001977,2]
[359477672,1746049838066,-1422.72635039,0.0001977,2]
[359477673,1746049838077,-1422.72635039,0.0001977,2]
[359477674,1746049838087,-1422.72635039,0.0001977,2]
[359477675,1746049838096,-1422.72635039,0.0001977,2]
[359477676,1746049838106,-1422.72635039,0.0001977,2]
[359477677,1746049838116,-1422.72635039,0.0001977,2]
[359477678,1746049838126,-1422.72635039,0.0001977,2]
[359477679,1746049838135,-1422.72635039,0.0001977,2]
[359477680,1746049838144,-1422.72635039,0.0001977,2]
[359477681,1746049838153,-1422.72635039,0.0001977,2]
[359477682,1746049838163,-1422.72635039,0.0001977,2]
[359477683,1746049838173,-1422.72635039,0.0001977,2]
[359477684,1746049838182,-1422.72635039,0.0001977,2]
[359477685,1746049838191,-1422.72635039,0.0001977,2]
[359477686,1746049838201,-1422.72635039,0.0001977,2]
[359477687,1746049838210,-1422.72635039,0.0001977,2]
[359477688,1746049838220,-1422.72635039,0.0001977,2]
[359477689,1746049838230,-1422.72635039,0.0001977,2]
[359477690,1746049838239,-1422.72635039,0.0001977,2]
[359477691,1746049838249,-1934.84228996,0.0001977,2]
[359477692,1746049838258,-1934.84228996,0.0001977,2]
[359477693,1746049838268,-1934.84228996,0.0001977,2]
[359477694,1746049838277,-1934.84228996,0.0001977,2]
[359477695,1746049838286,-1934.84228996,0.0001977,2]
[359477696,1746049838296,-1934.84228996,0.0001977,2]
[359477697,1746049838305,-1934.84228996,0.0001977,2]
[359477698,1746049838315,-1934.84228996,0.0001977,2]
[359477699,1746049838324,-1934.84228996,0.0001977,2]
[359477700,1746049838334,-1934.84228996,0.0001977,2]
[359477701,1746049838343,-1934.84228996,0.0001977,2]
[359477702,1746049838353,-1934.84228996,0.0001977,2]
[359477703,1746049838363,-1934.84228996,0.0001977,2]
[359477704,1746049838372,-1934.84228996,0.0001977,2]
[359477705,1746049838381,-1934.84228996,0.0001977,2]
[359477706,1746049838391,-1934.84228996,0.0001977,2]
[359477707,1746049838403,-1934.84228996,0.0001977,2]
[359477708,1746049838413,-1934.84228996,0.0001977,2]
[359477709,1746049838423,-1934.84228996,0.0001977,2]
[359477710,1746049838433,-1934.84228996,0.0001977,2]
[359477711,1746049838442,-1934.84228996,0.0001977,2]
[359477712,1746049838452,-1934.84228996,0.0001977,2]
[359477713,1746049838461,-1934.84228996,0.0001977,2]
[359477714,1746049838470,-1934.84228996,0.0001977,2]
[359477715,1746049838480,-1934.84228996,0.0001977,2]
[359477716,1746049838489,-1934.84228996,0.0001977,2]
[359477717,1746049838499,-1934.84228996,0.0001977,2]
[359477718,1746049838508,-1897.75781273,0.0001977,2]
[359477719,1746049838517,-1897.75781273,0.0001977,2]
[359477721,1746049838698,-1897.75781273,0.0001977,2]
[359477723,1746049838708,-1897.75781273,0.0001977,2]
[359477726,1746049838718,-1897.75781273,0.0001977,2]
[359477727,1746049838727,-1897.75781273,0.0001977,2]
[359477729,1746049838736,-1897.75781273,0.0001977,2]
[359477731,1746049838745,-1897.75781273,0.0001977,2]
[359477733,1746049838754,-1897.75781273,0.0001977,2]
[359477735,1746049838763,-1897.75781273,0.0001977,2]
[359477737,1746049838772,-1897.75781273,0.0001977,2]
[359477739,1746049838781,-1897.75781273,0.0001977,2]
[359477741,1746049838791,-1897.75781273,0.0001977,2]
[359477743,1746049838800,-1897.75781273,0.0001977,2]
[359477745,1746049838810,-1897.75781273,0.0001977,2]
[359477747,1746049838819,-1897.75781273,0.0001977,2]
[359477749,1746049838828,-1897.75781273,0.0001977,2]
[359477751,1746049838837,-1897.75781273,0.0001977,2]
[359477753,1746049838847,-1897.75781273,0.0001977,2]
[359477755,1746049838856,-1897.75781273,0.0001977,2]
[359477757,1746049838865,-1897.75781274,0.0001977,2]
[359477759,1746049838876,-1897.75781274,0.0001977,2]
[359477761,1746049838886,-1897.75781274,0.0001977,2]
[359477763,1746049838895,-1897.75781274,0.0001977,2]
[359477765,1746049838904,-179.0,0.0001977,2]
[359477767,1746049838913,-150.0,0.00019772,2]
[359477769,1746049838923,-150.0,0.00019774,2]
[359477770,1746049838932,-150.0,0.00019774,2]
[359477772,1746049838942,-150.0,0.00019781,2]
[359477774,1746049838952,-150.0,0.00019784,2]
[359477776,1746049838961,-150.0,0.0001979,2]
[359477778,1746049838971,-150.0,0.00019792,2]
[359477780,1746049838980,-150.0,0.00019798,2]
[359477782,1746049838990,-388.0879197,0.00019799,2]
[359477784,1746049839000,-169.0254,0.000198,2]
[359477786,1746049839009,-150.0,0.00019801,2]
[359477788,1746049839019,-150.0,0.00019803,2]
[359477790,1746049839028,-150.0,0.00019804,2]
[359477792,1746049839038,-150.0,0.00019805,2]
[359477794,1746049839048,-150.0,0.00019805,2]
[359477796,1746049839057,-150.0,0.00019813,2]
[359477798,1746049839067,-150.0,0.00019813,2]
[359477800,1746049839076,-3369.49547058,0.00019816,2]
[359477802,1746049839085,-150.0,0.00019821,2]
[359477804,1746049839095,-3369.49547056,0.00019825,2]
[359477806,1746049839105,-150.0,0.00019826,2]
[359477808,1746049839114,-150.0,0.00019834,2]
[359477810,1746049839123,-3369.49547056,0.00019835,2]
[359477812,1746049839135,-150.0,0.00019838,2]
[359477814,1746049839144,-150.0,0.00019839,2]
[359477816,1746049839154,-2000.0,0.0001984,2]
[359477818,1746049839163,-200.0,0.0001984,2]
[359477820,1746049839172,-3369.49547056,0.00019844,2]
[359477822,1746049839182,-150.0,0.00019846,2]
[359477824,1746049839192,-150.0,0.00019848,2]
[359477825,1746049839201,-150.0,0.00019851,2]
[359477827,1746049839212,-150.0,0.00019853,2]
[359477830,1746049839221,-150.0,0.00019853,2]
[359477832,1746049839231,-150.0,0.00019853,2]
[359477833,1746049839240,-3369.49547056,0.00019853,2]
[359477835,1746049839251,-1000.0,0.00019862,2]
[359477837,1746049839261,-3369.49547056,0.00019863,2]
[359477839,1746049839270,-150.0,0.00019872,2]
[359477841,1746049839279,-3369.49547056,0.00019872,2]
[359477843,1746049839290,-150.0,0.00019873,2]
[359477845,1746049839299,-150.0,0.00019878,2]
[359477847,1746049839308,-150.0,0.00019881,2]
[359477849,1746049839318,-3369.49547056,0.00019881,2]
[359477851,1746049839327,-150.0,0.00019883,2]
[359477853,1746049839336,-150.0,0.00019884,2]
[359477855,1746049839345,-596.6322013,0.00019886,2]
[359477857,1746049839355,-185.71969899,0.00019886,2]
[359477859,1746049839366,-150.0,0.00019888,2]
[359477861,1746049839376,-3369.49547056,0.00019891,2]
[359477863,1746049839387,-150.0,0.00019896,2]
[359477865,1746049839399,-207.5035362,0.000199,2]
[359477867,1746049839408,-157.0066541,0.000199,3]
[359477869,1746049839418,-3369.49547056,0.000199,2]
[359477871,1746049839427,-150.0,0.00019901,2]
[359477873,1746049839437,-150.0,0.00019905,2]
[359477875,1746049839447,-1000.0,0.00019916,2]
[359477877,1746049839456,-150.0,0.00019916,2]
[359477879,1746049839466,-1000.0,0.00019917,2]
[359477881,1746049839475,-150.0,0.00019919,2]
[359477883,1746049839485,-802.90405304,0.00019921,2]
[359477885,1746049839494,-1000.0,0.00019926,2]
[359477886,1746049839504,-150.0,0.0001993,2]
[359477888,1746049839514,-150.0,0.00019931,2]
[359477890,1746049839523,-1000.0,0.00019934,2]
[359477892,1746049839533,-1000.0,0.00019938,2]
[359477894,1746049839542,-150.0,0.00019941,2]
[359477896,1746049839551,-1000.0,0.00019946,2]
[359477898,1746049839561,-150.0,0.00019947,2]
[359477900,1746049839570,-150.0,0.00019954,2]
[359477902,1746049839579,-1000.0,0.00019968,2]
[359477904,1746049839589,-1654.14512105,0.0001997,2]
[359477906,1746049839598,-501.68025213,0.0001997,2]
[359477907,1746049839608,-535.81415266,0.00019973,2]
[359477909,1746049839617,-150.0,0.00019982,2]
[359477911,1746049839626,-4572.7122635,0.00019986,2]
[359477913,1746049839635,-938.7277482,0.00019986,2]
[359477915,1746049839645,-10601.7039275,0.00019986,2]
[359477917,1746049839654,-72636.2559719,0.00019986,2]
[359477919,1746049839663,-6946.6501572,0.00019986,2]
[359477922,1746049839673,-1487.7610572,0.00019986,2]
[359477926,1746049839682,-5872.5344105,0.00019986,2]
[359477929,1746049839692,-500.0,0.00019999,2]
[359477932,1746049839701,-500.0,0.00019999,2]
[359477935,1746049839710,-300.0,0.00019999,2]
[359477938,1746049839719,-540.0,0.0002,2]
[359477941,1746049839729,-1235079.40806023,0.0002,2]
[359477943,1746049839739,-3604081.12894216,0.0002,2]
[359477945,1746049839752,-1156.71180127,0.0002,2]
[359477947,1746049839764,-8230.35625268,0.0002,2]
[359477949,1746049839773,-160.076457,0.0002,2]
[359477951,1746049839782,-151.0,0.0002,2]
[359477953,1746049839791,-453.22064694,0.0002,2]
[359477955,1746049839801,-151.0,0.0002,2]
[359477957,1746049839810,-192.02180146,0.0002001,2]
[359477959,1746049839819,-5772.0,0.0002001,2]
[359477961,1746049839828,-4361.53472016,0.0002002,2]
[359477964,1746049839851,-936.60724661,0.0002002,2]
[359477969,1746049839884,-879.20342316,0.0002002,2]
[359477972,1746049839903,-4825.04336439,0.0002002,2]
[359478070,1746049840885,-2115.33182775,0.0002002,2]
[359478530,1746049846010,-500.0,0.00019769,2]
[359478531,1746049846020,-500.0,0.00019769,2]
[359478532,1746049846031,-295.49931768,0.00019769,2]
[359478533,1746049846041,-500.0,0.00019769,2]
[359478534,1746049846051,-500.0,0.00019769,2]
[359478535,1746049846061,-500.0,0.00019769,2]
[359478536,1746049846071,-500.0,0.00019769,2]
[359478537,1746049846082,-500.0,0.00019769,2]
[359478538,1746049846093,-500.0,0.00019769,2]
[359478539,1746049846102,-500.0,0.00019769,2]
[359478540,1746049846111,-6225.22603596,0.0002002,2]
[359478541,1746049846123,-931.70807994,0.0002002,2]
[359478544,1746049846134,-759.0053,0.0002002,2]
[359478571,1746049925600,868.2,0.00018488,2]
[359478572,1746050006657,151.0,0.00029,30]
[359478573,1746050007104,151.0,0.00029,30]
[359478574,1746050007514,151.0,0.00029,30]
[359478575,1746050007846,151.0,0.00029,30]
[359478576,1746050008223,161.18732624,0.00029,30]
[359478577,1746050512165,10000.51,0.00045847,31]
[359478578,1746050559882,8000.0,0.00045847,31]
[359478579,1746050632815,173.99086,0.0001982,23]
[359478580,1746050632883,173.99087,0.0002482,34]
[359478581,1746050664296,169.80648555,0.00045847,31]
[359478582,1746050666146,169.80648555,0.00045847,31]
[359478583,1746050667460,169.80648555,0.00045847,31]
[359478584,1746050675403,169.80648554,0.00045847,31]
[359478585,1746050739408,-208.51139513,0.00019317,2]
[359478586,1746050742188,-190.38968787,0.00019317,2]
[359478592,1746050877203,250.0,0.00019167,2]
[359478593,1746050914254,156.0,0.00045847,31]
[359478604,1746050970145,300.0,0.00045847,31]
[359478605,1746050993618,824.79,0.00017799,2]
[359478610,1746051030647,300.0,0.00045847,31]
[359478612,1746051032081,-250.0,0.00019595,2]
[359478613,1746051032091,-1200.0,0.00019775,2]
[359478614,1746051032100,-300.0,0.00019775,2]
[359478615,1746051032110,-300.0,0.00019775,2]
[359478616,1746051032119,-8200.1480408,0.00019776,2]
[359478617,1746051032146,-575.77663476,0.00019776,2]
[359480228,1746051060312,250.0,0.00017,2]
[359480229,1746051061381,300.0,0.00019,2]
[359480230,1746051116899,303.748,0.00045847,31]
[359480235,1746051324902,355227.82,0.00045847,60]
[359480236,1746051439013,500.0,0.00045847,120]
[359480237,1746051481274,2402.0191756,0.00045847,31]
[359480240,1746051548802,173.99087,0.0001984,23]
[359480243,1746051624938,490.058576,0.00019313,2]
[359480244,1746051934676,500.0,0.00045856,120]
[359480245,1746051934975,500.0,0.00045856,120]
[359480246,1746051935139,500.0,0.00045856,120]
[359480247,1746051935372,500.0,0.00045856,120]
[359480248,1746051935627,500.0,0.00045856,120]
[359480249,1746051935871,500.0,0.00045856,120]
[359480250,1746051954573,17175.48727969,6.94e-05,2]
[359480251,1746051966637,500.0,0.00045856,120]
[359480252,1746051966895,500.0,0.00045856,120]
[359480253,1746051966994,2406.12221413,8e-05,2]
[359480254,1746051967146,500.0,0.00045856,120]
[359480255,1746051967436,500.0,0.00045856,120]
[359480256,1746051967636,500.0,0.00045856,120]
[359480257,1746051994144,200.0,0.00018948,2]
[359480259,1746052029659,1683.35991904,0.00015,2]
[359480260,1746052033040,2336.04243038,0.00015,2]
[359480261,1746052035644,205.0,9.8e-05,2]
[359480262,1746052039339,1642.98815676,0.0001305,2]
[359480267,1746052103010,783.55,0.00017054,2]
[359480268,1746052103987,-266.19838245,0.00019318,2]
[359480269,1746052115092,-218.63344187,0.00019318,2]
[359480270,1746052120233,-171.37176513,0.00019318,2]
[359480272,1746052128225,-127.34641055,0.00019318,2]
[359480288,1746052166976,475.74,0.00018959,2]
[359480293,1746052194405,900.0,0.0001941,60]
[359480300,1746052206289,1000.0,0.00018963,2]
[359480305,1746052232054,-300.0,0.0001941,2]
[359480306,1746052232063,-1200.0,0.0001941,2]
[359480307,1746052232072,-254.0,0.0001941,2]
[359480308,1746052232083,-200.0,0.0001941,2]
[359480309,1746052232093,-250.0,0.0001941,2]
[359480310,1746052232103,-199.61255909,0.0001941,2]
[359480311,1746052232112,-5015.84000323,0.00019411,2]
[359480312,1746052232233,-539.75,0.00019411,2]
[359480313,1746052232247,-250.28547636,0.00019411,2]
[359480314,1746052232260,-519.20423304,0.00019411,2]
[359480315,1746052232272,-929.51574957,0.00019411,2]
[359480316,1746052232308,-487.56775065,0.00019411,2]
[359480317,1746052232320,-2145.020002,0.00019411,2]
[359480320,1746052232340,-291.26119028,0.00019411,2]